[Event "Torneo Nuevo Centro. Jornada 11"]
[Site "Chess.com"]
[Date "2020.08.28"]
[Round "1"]
[White "Carbonell Sancho, Marc"]
[Black "Perrot, Fabien "]
[Result "1-0"]
[WhiteElo "1854"]
[BlackElo "1151"]
[TimeControl "180+2"]
[EndTime "10:36:30 PDT"]
[Termination "Victoria de AkaliGOD por jaque mate"]

1. e4 {[%clk 0:03:01.4]} 1... e5 {[%clk 0:02:57.2]} 2. Nf3 {[%clk 0:03:02.5]}
2... Nc6 {[%clk 0:02:57.7]} 3. Bc4 {[%clk 0:03:03.7]} 3... Bc5 {[%clk
0:02:57.9]} 4. b4 {[%clk 0:03:04.7]} 4... Bxb4 {[%clk 0:02:57.1]} 5. c3 {[%clk
0:03:06]} 5... Be7 {[%clk 0:02:56.8]} 6. d4 {[%clk 0:03:07.1]} 6... exd4 {[%clk
0:02:53.2]} 7. cxd4 {[%clk 0:03:07.8]} 7... Bb4+ {[%clk 0:02:42.6]} 8. Nbd2
{[%clk 0:03:06.5]} 8... d6 {[%clk 0:02:31.2]} 9. O-O {[%clk 0:03:03.4]} 9... Bg4
{[%clk 0:02:24.5]} 10. Bb2 {[%clk 0:02:55]} 10... Bxd2 {[%clk 0:02:12.5]} 11.
Qxd2 {[%clk 0:02:55.3]} 11... Bxf3 {[%clk 0:02:12.4]} 12. gxf3 {[%clk 0:02:56]}
12... Qh4 {[%clk 0:01:22.3]} 13. Rab1 {[%clk 0:02:47.3]} 13... g5 {[%clk
0:00:54.4]} 14. Kh1 {[%clk 0:02:35.8]} 14... f6 {[%clk 0:00:31]} 15. Bc3 {[%clk
0:02:26.6]} 15... Nge7 {[%clk 0:00:25.8]} 16. Rxb7 {[%clk 0:02:26.1]} 16... Kd7
{[%clk 0:00:22.4]} 17. d5 {[%clk 0:02:23.9]} 17... Ne5 {[%clk 0:00:22.4]} 18.
Bb5+ {[%clk 0:02:25]} 18... Kc8 {[%clk 0:00:16.7]} 19. Bxe5 {[%clk 0:02:21.3]}
19... fxe5 {[%clk 0:00:16.1]} 20. Ba6 {[%clk 0:02:15.6]} 20... Kd7 {[%clk
0:00:15.7]} 21. Rc1 {[%clk 0:02:15.1]} 21... Rhc8 {[%clk 0:00:13.1]} 22. Rc3
{[%clk 0:02:08.1]} 22... Ng6 {[%clk 0:00:12.4]} 23. Qc2 {[%clk 0:01:58.9]} 23...
Nf4 {[%clk 0:00:04.9]} 24. Rcxc7+ {[%clk 0:01:58.3]} 24... Rxc7 {[%clk
0:00:05.2]} 25. Qxc7+ {[%clk 0:01:59.1]} 25... Ke8 {[%clk 0:00:05.8]} 26. Qe7#
{[%clk 0:02:00]} 1

[Event "Torneo Nuevo Centro. Jornada 11"]
[Site "Chess.com"]
[Date "2020.08.28"]
[Round "1"]
[White "Bosch Jordà, Ricard"]
[Black "Alegre Romaguera, Francesc"]
[Result "1-0"]
[WhiteElo "1938"]
[BlackElo "1327"]
[TimeControl "180+2"]
[EndTime "10:36:32 PDT"]
[Termination "Victoria de UltimateLimo por abandono"]

1. e4 {[%clk 0:03:01]} 1... c5 {[%clk 0:03:00.8]} 2. Nf3 {[%clk 0:03:00.6]} 2...
d6 {[%clk 0:03:01.9]} 3. d4 {[%clk 0:03:01.5]} 3... cxd4 {[%clk 0:03:02.5]} 4.
Nxd4 {[%clk 0:03:02.3]} 4... Nf6 {[%clk 0:03:02.5]} 5. Nc3 {[%clk 0:03:00.7]}
5... a6 {[%clk 0:03:00.2]} 6. f3 {[%clk 0:02:59.6]} 6... e5 {[%clk 0:03:00]} 7.
Nb3 {[%clk 0:02:59.1]} 7... Be6 {[%clk 0:02:58.8]} 8. Be3 {[%clk 0:02:59.4]}
8... Nbd7 {[%clk 0:02:56.5]} 9. g4 {[%clk 0:02:58.5]} 9... b5 {[%clk 0:02:50.3]}
10. g5 {[%clk 0:02:53.3]} 10... Nh5 {[%clk 0:02:42.7]} 11. Qd2 {[%clk 0:02:53]}
11... Be7 {[%clk 0:01:56.5]} 12. O-O-O {[%clk 0:02:51.9]} 12... Nf4 {[%clk
0:01:39.6]} 13. Bxf4 {[%clk 0:02:19.7]} 13... exf4 {[%clk 0:01:39.5]} 14. h4
{[%clk 0:02:20.6]} 14... b4 {[%clk 0:01:00.3]} 15. Nd5 {[%clk 0:02:13.1]} 15...
Bxd5 {[%clk 0:00:51.5]} 16. exd5 {[%clk 0:02:10.6]} 16... a5 {[%clk 0:00:40.6]}
17. Bb5 {[%clk 0:02:01.8]} 17... O-O {[%clk 0:00:26.6]} 18. Nd4 {[%clk
0:02:01.6]} 18... Nb6 {[%clk 0:00:19.6]} 19. Nc6 {[%clk 0:01:59.4]} 19... Qc7
{[%clk 0:00:18.3]} 20. Rde1 {[%clk 0:01:47.9]} 20... a4 {[%clk 0:00:15.2]} 21.
Rxe7 {[%clk 0:01:42]} 21... Qb7 {[%clk 0:00:14.4]} 22. Rxb7 {[%clk 0:01:42]} 1

[Event "Torneo Nuevo Centro. Jornada 11"]
[Site "Chess.com"]
[Date "2020.08.28"]
[Round "1"]
[White "Leal Uribe, Jhonny Alberto"]
[Black "Fernández Martin, Carlos"]
[Result "1-0"]
[WhiteElo "2550"]
[BlackElo "1776"]
[TimeControl "180+2"]
[EndTime "10:36:45 PDT"]
[Termination "Victoria de jhonnyuribe por jaque mate"]

1. d4 {[%clk 0:03:01.9]} 1... d6 {[%clk 0:02:59.1]} 2. Nf3 {[%clk 0:03:03.1]}
2... Nf6 {[%clk 0:02:59]} 3. e3 {[%clk 0:03:04.4]} 3... g6 {[%clk 0:03:00.1]} 4.
Bd3 {[%clk 0:03:05.7]} 4... Bg7 {[%clk 0:03:01.5]} 5. Nbd2 {[%clk 0:03:07.3]}
5... O-O {[%clk 0:03:02.5]} 6. O-O {[%clk 0:03:08.9]} 6... Nc6 {[%clk
0:03:03.7]} 7. c3 {[%clk 0:03:09.7]} 7... Re8 {[%clk 0:03:04.4]} 8. e4 {[%clk
0:03:10.8]} 8... Bg4 {[%clk 0:03:04.7]} 9. h3 {[%clk 0:03:10.7]} 9... Bxf3
{[%clk 0:03:04.8]} 10. Nxf3 {[%clk 0:03:12.6]} 10... e5 {[%clk 0:03:05.7]} 11.
Bg5 {[%clk 0:03:11.7]} 11... Qd7 {[%clk 0:02:59]} 12. Re1 {[%clk 0:03:05.5]}
12... h6 {[%clk 0:02:53.4]} 13. Bh4 {[%clk 0:02:59.6]} 13... g5 {[%clk
0:02:54.2]} 14. Bg3 {[%clk 0:03:00.9]} 14... Nh5 {[%clk 0:02:51.6]} 15. Nxe5
{[%clk 0:02:49.8]} 15... Nxe5 {[%clk 0:02:23.8]} 16. Bxe5 {[%clk 0:02:49.7]}
16... dxe5 {[%clk 0:02:20.2]} 17. Qxh5 {[%clk 0:02:49.7]} 17... exd4 {[%clk
0:02:21.2]} 18. cxd4 {[%clk 0:02:37.2]} 18... Qxd4 {[%clk 0:02:20.7]} 19. Rad1
{[%clk 0:02:37.1]} 19... Qe5 {[%clk 0:02:14.5]} 20. Bc4 {[%clk 0:02:36]} 20...
Re7 {[%clk 0:02:07.5]} 21. Rd5 {[%clk 0:02:32]} 21... Qxb2 {[%clk 0:01:52.4]}
22. Bb3 {[%clk 0:02:30]} 22... Rae8 {[%clk 0:01:49]} 23. Rf5 {[%clk 0:02:25.3]}
23... Rf8 {[%clk 0:01:40.3]} 24. h4 {[%clk 0:02:22.9]} 24... Bd4 {[%clk
0:01:27.8]} 25. Qxh6 {[%clk 0:02:10.1]} 25... gxh4 {[%clk 0:01:02.1]} 26. e5
{[%clk 0:01:58.6]} 26... Rxe5 {[%clk 0:00:46.1]} 27. Rexe5 {[%clk 0:01:50.3]}
27... Bxe5 {[%clk 0:00:46.3]} 28. Qg6+ {[%clk 0:01:41.8]} 28... Bg7 {[%clk
0:00:42.8]} 29. Bxf7+ {[%clk 0:01:42.9]} 29... Rxf7 {[%clk 0:00:36.4]} 30. Qxf7+
{[%clk 0:01:43.3]} 30... Kh7 {[%clk 0:00:23.2]} 31. Rh5# {[%clk 0:01:44.1]} 1

[Event "Torneo Nuevo Centro. Jornada 11"]
[Site "Chess.com"]
[Date "2020.08.28"]
[Round "1"]
[White "Bascuñana Sánchez, Pablo"]
[Black "Serarols Mabras, Bernat"]
[Result "0-1"]
[WhiteElo "1682"]
[BlackElo "2459"]
[TimeControl "180+2"]
[EndTime "10:36:48 PDT"]
[Termination "Victoria de bernatserarols por tiempo"]

1. e4 {[%clk 0:02:58.9]} 1... c6 {[%clk 0:03:00.9]} 2. d4 {[%clk 0:02:56.8]}
2... d5 {[%clk 0:03:02]} 3. exd5 {[%clk 0:02:54.7]} 3... cxd5 {[%clk 0:03:02.9]}
4. Bd3 {[%clk 0:02:56.2]} 4... Nc6 {[%clk 0:03:03.6]} 5. c3 {[%clk 0:02:52.8]}
5... Qc7 {[%clk 0:03:04.6]} 6. Nf3 {[%clk 0:02:49.2]} 6... Bg4 {[%clk
0:03:04.9]} 7. h3 {[%clk 0:02:46.2]} 7... Bh5 {[%clk 0:03:05.9]} 8. O-O {[%clk
0:02:40.6]} 8... e6 {[%clk 0:03:06.5]} 9. b4 {[%clk 0:02:32.2]} 9... Bd6 {[%clk
0:03:06.7]} 10. b5 {[%clk 0:02:13.4]} 10... Na5 {[%clk 0:03:04.2]} 11. Qa4
{[%clk 0:02:06.9]} 11... b6 {[%clk 0:03:05.2]} 12. Ba3 {[%clk 0:02:00.1]} 12...
Bxf3 {[%clk 0:03:04.6]} 13. Bxd6 {[%clk 0:01:48.7]} 13... Qxd6 {[%clk
0:03:06.5]} 14. gxf3 {[%clk 0:01:48.9]} 14... Ne7 {[%clk 0:03:07.4]} 15. Nd2
{[%clk 0:01:45.8]} 15... O-O {[%clk 0:03:08]} 16. Kh1 {[%clk 0:01:42.6]} 16...
Rac8 {[%clk 0:03:07.5]} 17. Qc2 {[%clk 0:01:40.9]} 17... g6 {[%clk 0:03:04.5]}
18. Rg1 {[%clk 0:01:34.8]} 18... Qf4 {[%clk 0:03:04.3]} 19. Rg3 {[%clk
0:01:32.3]} 19... Nf5 {[%clk 0:02:58.8]} 20. Bxf5 {[%clk 0:01:26]} 20... Qxf5
{[%clk 0:02:59.5]} 21. Qxf5 {[%clk 0:01:14.6]} 21... exf5 {[%clk 0:03:01.4]} 22.
f4 {[%clk 0:01:10.5]} 22... Rfe8 {[%clk 0:03:01.2]} 23. Re3 {[%clk 0:00:53.6]}
23... Rxe3 {[%clk 0:03:01.6]} 24. fxe3 {[%clk 0:00:51.8]} 24... Rxc3 {[%clk
0:03:03.5]} 25. Re1 {[%clk 0:00:49.3]} 25... Nc4 {[%clk 0:03:04.2]} 26. Nxc4
{[%clk 0:00:44.8]} 26... Rxc4 {[%clk 0:03:06.1]} 27. Rb1 {[%clk 0:00:37.2]}
27... Kf8 {[%clk 0:03:06.6]} 28. Kh2 {[%clk 0:00:36.2]} 28... Ke7 {[%clk
0:03:08]} 29. Kg2 {[%clk 0:00:34.9]} 29... Kd7 {[%clk 0:03:09.3]} 30. Kf3 {[%clk
0:00:35.6]} 30... Rc2 {[%clk 0:03:10.8]} 31. a4 {[%clk 0:00:34.4]} 31... Ra2
{[%clk 0:03:11.3]} 32. Rb4 {[%clk 0:00:31.4]} 32... Kd6 {[%clk 0:03:12.5]} 33.
Kg3 {[%clk 0:00:24.9]} 33... f6 {[%clk 0:03:13.5]} 34. Kf3 {[%clk 0:00:24.6]}
34... h6 {[%clk 0:03:14.5]} 35. Kg3 {[%clk 0:00:21.6]} 35... h5 {[%clk
0:03:15.4]} 36. Kf3 {[%clk 0:00:21.5]} 36... h4 {[%clk 0:03:16.6]} 37. Rb3
{[%clk 0:00:12.3]} 37... Rxa4 {[%clk 0:03:16.4]} 38. Rb2 {[%clk 0:00:10.9]}
38... Ke6 {[%clk 0:03:13]} 39. Rg2 {[%clk 0:00:07.4]} 39... Kf7 {[%clk
0:03:13.6]} 40. Rb2 {[%clk 0:00:06.5]} 40... g5 {[%clk 0:03:11.1]} 41. fxg5
{[%clk 0:00:06.1]} 41... fxg5 {[%clk 0:03:10.8]} 42. Ke2 {[%clk 0:00:04]} 42...
Ra3 {[%clk 0:03:10.4]} 43. Kf3 {[%clk 0:00:04.1]} 43... f4 {[%clk 0:03:10.3]}
0

[Event "Torneo Nuevo Centro. Jornada 11"]
[Site "Chess.com"]
[Date "2020.08.28"]
[Round "1"]
[White "Montesinos Diaz, Luis"]
[Black "Ainsa Jimenez, Lucas"]
[Result "1-0"]
[WhiteElo "1889"]
[BlackElo "1188"]
[TimeControl "180+2"]
[EndTime "10:36:51 PDT"]
[Termination "Victoria de Gwiso_06 por jaque mate"]

1. e4 {[%clk 0:02:57.8]} 1... e5 {[%clk 0:03:00.4]} 2. Nf3 {[%clk 0:02:57.5]}
2... Nc6 {[%clk 0:03:00.6]} 3. Bc4 {[%clk 0:02:54.5]} 3... Bc5 {[%clk
0:03:00.3]} 4. d4 {[%clk 0:02:48.9]} 4... Nxd4 {[%clk 0:02:50]} 5. Nxe5 {[%clk
0:02:47.9]} 5... Nh6 {[%clk 0:02:14.7]} 6. Bxh6 {[%clk 0:02:46.1]} 6... gxh6
{[%clk 0:02:14.3]} 7. Nxf7 {[%clk 0:02:30.5]} 7... Qf6 {[%clk 0:02:12.3]} 8.
Nxh8 {[%clk 0:02:19.1]} 8... Nb3 {[%clk 0:02:02.6]} 9. O-O {[%clk 0:02:11.1]}
9... Nxa1 {[%clk 0:02:00.9]} 10. Qh5+ {[%clk 0:01:51.9]} 10... Kd8 {[%clk
0:01:32.2]} 11. Nc3 {[%clk 0:01:49.5]} 11... Bb6 {[%clk 0:01:10.4]} 12. Nf7+
{[%clk 0:01:32]} 12... Ke7 {[%clk 0:01:02.9]} 13. Nd5+ {[%clk 0:01:29.1]} 13...
Ke6 {[%clk 0:00:44]} 14. Nxf6+ {[%clk 0:01:18.4]} 14... Kxf6 {[%clk 0:00:38.3]}
15. Qf5+ {[%clk 0:00:57.4]} 15... Kg7 {[%clk 0:00:35.6]} 16. e5 {[%clk
0:00:54.3]} 16... d5 {[%clk 0:00:33.7]} 17. Qf6+ {[%clk 0:00:53]} 17... Kg8
{[%clk 0:00:32.4]} 18. Nxh6# {[%clk 0:00:33.6]} 1

[Event "Torneo Nuevo Centro. Jornada 11"]
[Site "Chess.com"]
[Date "2020.08.28"]
[Round "1"]
[White "Roca Cruz, Rafael"]
[Black "Rabbani Perez, Oumaima "]
[Result "1-0"]
[WhiteElo "1800"]
[BlackElo "706"]
[TimeControl "180+2"]
[EndTime "10:37:05 PDT"]
[Termination "Victoria de RafaRocaCruz por jaque mate"]

1. d4 {[%clk 0:02:59.8]} 1... d6 {[%clk 0:02:56.6]} 2. c4 {[%clk 0:03:00.6]}
2... e6 {[%clk 0:02:50.4]} 3. Nc3 {[%clk 0:03:01.4]} 3... e5 {[%clk 0:02:49.3]}
4. dxe5 {[%clk 0:03:01.4]} 4... Nc6 {[%clk 0:02:42.4]} 5. exd6 {[%clk 0:02:55]}
5... cxd6 {[%clk 0:02:41.8]} 6. Bf4 {[%clk 0:02:43.2]} 6... Be7 {[%clk
0:02:29.6]} 7. Nf3 {[%clk 0:02:43.6]} 7... Nf6 {[%clk 0:02:29]} 8. h3 {[%clk
0:02:40.3]} 8... Ng8 {[%clk 0:02:19.8]} 9. e3 {[%clk 0:02:41.1]} 9... Nf6 {[%clk
0:02:19.9]} 10. Be2 {[%clk 0:02:41.9]} 10... O-O {[%clk 0:02:19]} 11. O-O {[%clk
0:02:42.8]} 11... h6 {[%clk 0:02:19]} 12. Qd2 {[%clk 0:02:37.9]} 12... Nh5
{[%clk 0:02:18]} 13. Bh2 {[%clk 0:02:36.8]} 13... Nf6 {[%clk 0:02:15.7]} 14.
Rfd1 {[%clk 0:02:37]} 14... Na5 {[%clk 0:01:55.9]} 15. Bxd6 {[%clk 0:02:32.1]}
15... Bxd6 {[%clk 0:01:55.3]} 16. Qxd6 {[%clk 0:02:32.8]} 16... Qxd6 {[%clk
0:01:55.3]} 17. Rxd6 {[%clk 0:02:33.6]} 17... Nxc4 {[%clk 0:01:54]} 18. Bxc4
{[%clk 0:02:34.4]} 18... Nh5 {[%clk 0:01:47.6]} 19. Rad1 {[%clk 0:02:33.2]}
19... a6 {[%clk 0:01:31.9]} 20. Ne5 {[%clk 0:02:33.5]} 20... b5 {[%clk
0:01:31.6]} 21. Bb3 {[%clk 0:02:30.4]} 21... Be6 {[%clk 0:01:24.3]} 22. Bxe6
{[%clk 0:02:22.9]} 22... fxe6 {[%clk 0:01:23.3]} 23. Rxe6 {[%clk 0:02:23.4]}
23... b4 {[%clk 0:01:19.3]} 24. Ne4 {[%clk 0:02:19.5]} 24... a5 {[%clk
0:01:16.3]} 25. Rd7 {[%clk 0:02:19.3]} 25... Rfd8 {[%clk 0:01:08.6]} 26. Rxd8+
{[%clk 0:01:52.2]} 26... Rxd8 {[%clk 0:01:08.1]} 27. Rd6 {[%clk 0:01:50.2]}
27... Rc8 {[%clk 0:01:01]} 28. Rc6 {[%clk 0:01:39.7]} 28... Rd8 {[%clk
0:00:58.4]} 29. g4 {[%clk 0:01:38.7]} 29... Rd1+ {[%clk 0:00:54.8]} 30. Kg2
{[%clk 0:01:39.6]} 30... Ra1 {[%clk 0:00:54.3]} 31. gxh5 {[%clk 0:01:39.7]}
31... Rxa2 {[%clk 0:00:54]} 32. Nd6 {[%clk 0:01:32]} 32... Rxb2 {[%clk
0:00:53.8]} 33. Nf5 {[%clk 0:01:32.6]} 33... Ra2 {[%clk 0:00:51.8]} 34. Rc8+
{[%clk 0:01:30.9]} 34... Kh7 {[%clk 0:00:49.3]} 35. Ng6 {[%clk 0:01:31.6]} 35...
b3 {[%clk 0:00:47.8]} 36. Rh8# {[%clk 0:01:32.1]} 1

[Event "Torneo Nuevo Centro. Jornada 11"]
[Site "Chess.com"]
[Date "2020.08.28"]
[Round "1"]
[White "Lloret Ramis, Juan José"]
[Black "Gimenez Sanchis, Jose Antonio"]
[Result "1-0"]
[WhiteElo "1973"]
[BlackElo "1404"]
[TimeControl "180+2"]
[EndTime "10:37:15 PDT"]
[Termination "Victoria de Amiplim por abandono"]

1. c4 {[%clk 0:03:01.9]} 1... d6 {[%clk 0:02:55.3]} 2. Nc3 {[%clk 0:03:01.6]}
2... Nf6 {[%clk 0:02:56.4]} 3. d4 {[%clk 0:03:01.7]} 3... g6 {[%clk 0:02:56.6]}
4. e4 {[%clk 0:03:02.6]} 4... Nbd7 {[%clk 0:02:48.5]} 5. Nf3 {[%clk 0:03:03.1]}
5... Bg7 {[%clk 0:02:47.2]} 6. Be2 {[%clk 0:02:24.1]} 6... O-O {[%clk
0:02:47.2]} 7. e5 {[%clk 0:02:25.3]} 7... dxe5 {[%clk 0:02:47.8]} 8. dxe5 {[%clk
0:02:25.7]} 8... Ng4 {[%clk 0:02:40.4]} 9. e6 {[%clk 0:02:24.6]} 9... fxe6
{[%clk 0:02:40.4]} 10. O-O {[%clk 0:02:20.1]} 10... b6 {[%clk 0:02:34.2]} 11.
Ng5 {[%clk 0:02:12.4]} 11... Nxf2 {[%clk 0:01:55.8]} 12. Rxf2 {[%clk 0:02:08.3]}
12... Rxf2 {[%clk 0:01:56.5]} 13. Kxf2 {[%clk 0:01:56.7]} 13... Bb7 {[%clk
0:01:51.1]} 14. Nxe6 {[%clk 0:01:49.9]} 14... Qe8 {[%clk 0:01:39.6]} 15. Nxg7
{[%clk 0:01:47.4]} 15... Kxg7 {[%clk 0:01:37]} 16. Bf3 {[%clk 0:01:46]} 16...
Bxf3 {[%clk 0:01:36.3]} 17. Qxf3 {[%clk 0:01:46.2]} 17... Nf6 {[%clk 0:01:34.1]}
18. Bf4 {[%clk 0:01:32.7]} 18... Qd7 {[%clk 0:01:34.2]} 19. Qxa8 {[%clk
0:01:17]} 19... Qd4+ {[%clk 0:01:31.2]} 20. Kf1 {[%clk 0:01:16.4]} 20... Qxf4+
{[%clk 0:01:32.1]} 21. Qf3 {[%clk 0:01:17.4]} 21... Qd4 {[%clk 0:01:25.3]} 22.
Qe2 {[%clk 0:01:06.9]} 22... Nh5 {[%clk 0:01:18.7]} 23. Rd1 {[%clk 0:00:58.4]}
23... Qf4+ {[%clk 0:01:17.6]} 24. Kg1 {[%clk 0:00:59.5]} 24... Qf6 {[%clk
0:01:03.6]} 25. Rf1 {[%clk 0:00:53.9]} 25... Qd6 {[%clk 0:01:01.8]} 26. Qf2
{[%clk 0:00:44.9]} 26... Nf6 {[%clk 0:01:00.7]} 27. Nd5 {[%clk 0:00:43.1]} 27...
Nxd5 {[%clk 0:00:58.3]} 28. Qf7+ {[%clk 0:00:42.5]} 28... Kh6 {[%clk 0:00:52.6]}
29. Qxd5 {[%clk 0:00:43]} 1

[Event "Torneo Nuevo Centro. Jornada 11"]
[Site "Chess.com"]
[Date "2020.08.28"]
[Round "1"]
[White "Gutierrez Marco, Dario"]
[Black "Grigorev, Artur "]
[Result "1-0"]
[WhiteElo "1822"]
[BlackElo "922"]
[TimeControl "180+2"]
[EndTime "10:37:22 PDT"]
[Termination "Victoria de rususs por tiempo"]

1. e4 {[%clk 0:03:01.9]} 1... e5 {[%clk 0:02:45.8]} 2. Nf3 {[%clk 0:03:02.2]}
2... Nc6 {[%clk 0:02:44.3]} 3. Bb5 {[%clk 0:03:03]} 3... Bc5 {[%clk 0:02:42.3]}
4. O-O {[%clk 0:03:02.4]} 4... Nf6 {[%clk 0:02:38.4]} 5. d3 {[%clk 0:03:03.2]}
5... d6 {[%clk 0:02:34.6]} 6. c3 {[%clk 0:03:03.7]} 6... O-O {[%clk 0:02:33]} 7.
Nbd2 {[%clk 0:03:02.9]} 7... Bg4 {[%clk 0:02:30]} 8. h3 {[%clk 0:03:02.5]} 8...
Bh5 {[%clk 0:02:28.7]} 9. Re1 {[%clk 0:03:02.7]} 9... a6 {[%clk 0:02:22.8]} 10.
Ba4 {[%clk 0:03:03.2]} 10... b5 {[%clk 0:02:22.9]} 11. Bc2 {[%clk 0:03:04.1]}
11... d5 {[%clk 0:02:14]} 12. Qe2 {[%clk 0:02:57.7]} 12... d4 {[%clk 0:02:11.4]}
13. Nf1 {[%clk 0:02:49.6]} 13... dxc3 {[%clk 0:02:09]} 14. bxc3 {[%clk
0:02:50.1]} 14... b4 {[%clk 0:02:00.3]} 15. Ng3 {[%clk 0:02:36.6]} 15... bxc3
{[%clk 0:01:53.8]} 16. Nxh5 {[%clk 0:02:35.6]} 16... Nxh5 {[%clk 0:01:53.6]} 17.
Nxe5 {[%clk 0:02:31]} 17... Nxe5 {[%clk 0:01:31.3]} 18. Qxh5 {[%clk 0:02:31.8]}
18... Qd6 {[%clk 0:01:27.7]} 19. Rd1 {[%clk 0:02:21.6]} 19... a5 {[%clk
0:01:13.5]} 20. Bf4 {[%clk 0:02:21]} 20... Bd4 {[%clk 0:01:10.2]} 21. Rab1
{[%clk 0:02:06.4]} 21... g6 {[%clk 0:00:51.1]} 22. Qe2 {[%clk 0:02:03.3]} 22...
Rab8 {[%clk 0:00:38.7]} 23. Bb3 {[%clk 0:01:57.5]} 23... c2 {[%clk 0:00:35.1]}
24. Bxc2 {[%clk 0:01:51.7]} 24... Rxb1 {[%clk 0:00:34.9]} 25. Rxb1 {[%clk
0:01:53.6]} 25... Qe6 {[%clk 0:00:20.7]} 26. Bb3 {[%clk 0:01:50.3]} 26... Qd6
{[%clk 0:00:15.3]} 27. Rc1 {[%clk 0:01:45]} 27... c5 {[%clk 0:00:15]} 28. Bh2
{[%clk 0:01:38.6]} 28... Qb6 {[%clk 0:00:11.2]} 29. Bxe5 {[%clk 0:01:34.4]}
29... Qb4 {[%clk 0:00:06.5]} 30. Bxd4 {[%clk 0:01:33.6]} 1

[Event "Torneo Nuevo Centro. Jornada 11"]
[Site "Chess.com"]
[Date "2020.08.28"]
[Round "1"]
[White "Macias Pino, Diego"]
[Black "Casado Andreu, David"]
[Result "0-1"]
[WhiteElo "2250"]
[BlackElo "1571"]
[TimeControl "180+2"]
[EndTime "10:37:28 PDT"]
[Termination "Victoria de dave6635 por abandono"]

1. d4 {[%clk 0:03:01.6]} 1... Nf6 {[%clk 0:02:57.6]} 2. Nf3 {[%clk 0:03:02.6]}
2... g6 {[%clk 0:02:58]} 3. Bf4 {[%clk 0:03:00.7]} 3... Bg7 {[%clk 0:02:59.4]}
4. Nbd2 {[%clk 0:03:02.1]} 4... d6 {[%clk 0:03:00.7]} 5. e4 {[%clk 0:03:02.5]}
5... O-O {[%clk 0:03:01.6]} 6. c3 {[%clk 0:03:03.2]} 6... Nc6 {[%clk 0:03:02.7]}
7. Qc2 {[%clk 0:03:01.7]} 7... Nd7 {[%clk 0:03:00.4]} 8. Be2 {[%clk 0:02:41.3]}
8... e5 {[%clk 0:03:00]} 9. Be3 {[%clk 0:02:40.6]} 9... f5 {[%clk 0:02:54.1]}
10. exf5 {[%clk 0:02:37.8]} 10... gxf5 {[%clk 0:02:56]} 11. dxe5 {[%clk
0:01:28.1]} 11... dxe5 {[%clk 0:02:54.8]} 12. Ng5 {[%clk 0:01:21.7]} 12... Nf6
{[%clk 0:02:51.2]} 13. Qb3+ {[%clk 0:01:17.2]} 13... Kh8 {[%clk 0:02:50.2]} 14.
Bc5 {[%clk 0:01:13.4]} 14... Ne7 {[%clk 0:02:44.1]} 15. Nf7+ {[%clk 0:00:55]}
15... Rxf7 {[%clk 0:02:44.8]} 16. Qxf7 {[%clk 0:00:56.9]} 16... Ng6 {[%clk
0:02:30.7]} 17. g3 {[%clk 0:00:52.7]} 17... b6 {[%clk 0:02:24.6]} 18. Ba3 {[%clk
0:00:50.4]} 18... Bb7 {[%clk 0:02:25]} 19. Rg1 {[%clk 0:00:43.2]} 19... e4
{[%clk 0:02:13.9]} 20. O-O-O {[%clk 0:00:42.9]} 20... Bd5 {[%clk 0:01:59.8]} 21.
Nb3 {[%clk 0:00:22.7]} 21... Bxf7 {[%clk 0:01:53.6]} 22. Rxd8+ {[%clk
0:00:23.4]} 22... Rxd8 {[%clk 0:01:55.5]} 23. Nd4 {[%clk 0:00:24.8]} 23... f4
{[%clk 0:01:34.3]} 24. gxf4 {[%clk 0:00:25.5]} 24... Nxf4 {[%clk 0:01:33]} 25.
Bb5 {[%clk 0:00:25.9]} 25... c5 {[%clk 0:01:24.4]} 26. Nf5 {[%clk 0:00:26.3]}
26... N6h5 {[%clk 0:01:08.4]} 27. Nxg7 {[%clk 0:00:21.8]} 27... Nxg7 {[%clk
0:01:08]} 28. b3 {[%clk 0:00:22]} 28... Nge6 {[%clk 0:00:55.1]} 29. c4 {[%clk
0:00:23.9]} 29... Ne2+ {[%clk 0:00:54.4]} 0

[Event "Torneo Nuevo Centro. Jornada 11"]
[Site "Chess.com"]
[Date "2020.08.28"]
[Round "1"]
[White "Fenollar Jorda, Manolo"]
[Black "Pardo Ruiz, Carlos"]
[Result "1-0"]
[WhiteElo "2465"]
[BlackElo "1690"]
[TimeControl "180+2"]
[EndTime "10:37:32 PDT"]
[Termination "Victoria de Cucudrulu por jaque mate"]

1. d4 {[%clk 0:03:01.9]} 1... c5 {[%clk 0:02:58]} 2. c3 {[%clk 0:03:02.5]} 2...
d5 {[%clk 0:02:56.9]} 3. Nf3 {[%clk 0:03:03.3]} 3... Nf6 {[%clk 0:02:54.3]} 4.
e3 {[%clk 0:03:03.7]} 4... Bf5 {[%clk 0:02:52.4]} 5. Bd3 {[%clk 0:03:02.7]} 5...
Bxd3 {[%clk 0:02:52.5]} 6. Qxd3 {[%clk 0:03:04.6]} 6... c4 {[%clk 0:02:53.5]} 7.
Qc2 {[%clk 0:03:03.8]} 7... Nc6 {[%clk 0:02:52.6]} 8. Nbd2 {[%clk 0:03:03.8]}
8... e6 {[%clk 0:02:49.4]} 9. e4 {[%clk 0:03:04]} 9... Be7 {[%clk 0:02:47.4]}
10. O-O {[%clk 0:03:00.7]} 10... O-O {[%clk 0:02:46.7]} 11. e5 {[%clk
0:02:45.2]} 11... Nd7 {[%clk 0:02:38.1]} 12. Ne1 {[%clk 0:02:44.8]} 12... f6
{[%clk 0:02:33.5]} 13. f4 {[%clk 0:02:37.5]} 13... fxe5 {[%clk 0:02:16.3]} 14.
fxe5 {[%clk 0:02:36.6]} 14... Rxf1+ {[%clk 0:02:15.4]} 15. Nxf1 {[%clk
0:02:38.5]} 15... Bg5 {[%clk 0:02:13.5]} 16. Nf3 {[%clk 0:02:37.7]} 16... Bxc1
{[%clk 0:02:12]} 17. Rxc1 {[%clk 0:02:39.6]} 17... Qe7 {[%clk 0:02:12.6]} 18.
Ng3 {[%clk 0:02:36.9]} 18... Rf8 {[%clk 0:02:10.9]} 19. Rf1 {[%clk 0:02:36.4]}
19... b5 {[%clk 0:01:55.1]} 20. h4 {[%clk 0:02:32.7]} 20... a5 {[%clk
0:01:51.9]} 21. Ng5 {[%clk 0:02:27.8]} 21... Rxf1+ {[%clk 0:01:47.9]} 22. Kxf1
{[%clk 0:02:29.7]} 22... Nf8 {[%clk 0:01:38.7]} 23. Kg1 {[%clk 0:02:27.8]} 23...
b4 {[%clk 0:01:32.8]} 24. Qa4 {[%clk 0:02:24.3]} 24... Qb7 {[%clk 0:01:24.4]}
25. Kh2 {[%clk 0:02:13.4]} 25... h6 {[%clk 0:01:09.3]} 26. Nf3 {[%clk
0:02:06.7]} 26... bxc3 {[%clk 0:00:55.9]} 27. bxc3 {[%clk 0:02:07]} 27... Qb6
{[%clk 0:00:54.9]} 28. Ne2 {[%clk 0:01:51.5]} 28... Ne7 {[%clk 0:00:47.8]} 29.
Qe8 {[%clk 0:01:40.9]} 29... Nc6 {[%clk 0:00:43.5]} 30. Nf4 {[%clk 0:01:39.6]}
30... Na7 {[%clk 0:00:40.8]} 31. Ng6 {[%clk 0:01:34.6]} 31... Qb2 {[%clk
0:00:20.1]} 32. Qxf8+ {[%clk 0:01:31.9]} 32... Kh7 {[%clk 0:00:20.2]} 33. h5
{[%clk 0:01:33.8]} 33... Qxg2+ {[%clk 0:00:14.8]} 34. Kxg2 {[%clk 0:01:33.3]}
34... Nb5 {[%clk 0:00:15.4]} 35. Ng5+ {[%clk 0:01:27.6]} 35... hxg5 {[%clk
0:00:14.8]} 36. Qh8# {[%clk 0:01:29.5]} 1